Cogmind - Beta 16.1 @@@ ROGUE MODE // 2026.02.14 @ 04:19:18 Player: Rocket Result: Self-destructed Performance ------------- Evolutions (2) 1000 Regions Visited (3) 600 Robots Destroyed (82) 410 Value Destroyed (2199) 2199 Prototype IDs (1) 20 Alien Tech Used (0) 0 Bonus (0) 0 TOTAL SCORE: 4229 Bonus ------- None Cogmind --------- Core Integrity 88/550 Matter 231/300 Energy 74/100 System Corruption 19% Temperature Cool (0) Movement Core (400) Ox7 Location -8/Materials Parts ------- > --- POWER (1) -------- (None) > --- PROPULSION (4) --- (None) > --- UTILITY (3) ------ Large Storage Unit Machine Analyzer > --- WEAPON (3) ------- Mining Claw > --- INVENTORY (15) --- Improved Ion Engine Improved Heat Sink Small Storage Unit High-capacity Storage Unit Medium Matter Pod (100) Sensor Array Hardened Light Armor Plating Peak State ------------ > --- POWER ------------ Deuterium Engine > --- PROPULSION ------- Aluminum Leg Aluminum Leg Armored Wheel > --- UTILITY ---------- Heat Sink Small Storage Unit Hardened Light Armor Plating > --- WEAPON ----------- Heavy EM Shotgun Heavy EM Shotgun EMP Blaster > --- INVENTORY -------- Improved Ion Engine High-capacity Storage Unit Medium Matter Pod Sensor Array Hardened Light Armor Plating Medium Laser EMP Blaster EMP Blaster [Rating: 22] Favorites ----------- Power Ion Engine Engine Ion Engine Power Core Light Nuclear Core Propulsion Aluminum Leg Treads Light Treads Leg Aluminum Leg Wheel Armored Wheel Utility Small Storage Unit Device Heat Sink Storage Small Storage Unit Processor Advanced Visual Processing Unit Protection Hardened Light Armor Plating Weapon Assault Rifle Energy Gun Heavy EM Shotgun Ballistic Gun Assault Rifle Launcher EMP Blaster Slashing Weapon Mining Claw Build | -11 -10 -9 -8 ------- Run | Yrd Mat Mat Mat Slots Evolved 4 | . . 2 2 Power . | . . . . Propulsion 2 | . . 1 1 Utility 1 | . . . 1 Weapon 1 | . . 1 . Parts Attached 62 | 7 16 18 21 Power 7 | 1 2 2 2 Engine 6 | 1 2 2 1 Core 1 | . . . 1 Reactor . | . . . . Propulsion 17 | 2 5 4 6 Treads 1 | . . 1 . Leg 14 | 2 5 2 5 Wheel 2 | . . 1 1 Hover . | . . . . Flight . | . . . . Utility 13 | 2 3 2 6 Device 6 | 1 2 . 3 Storage 2 | 1 . . 1 Processor 2 | . . . 2 Hackware . | . . . . Protection 3 | . 1 2 . Artifact . | . . . . Weapon 25 | 2 6 10 7 Energy Gun 13 | 1 5 4 3 Energy Cannon . | . . . . Ballistic Gun 7 | 1 1 4 1 Ballistic Cannon . | . . . . Launcher 4 | . . 2 2 Special Weapon . | . . . . Impact Weapon . | . . . . Slashing Weapon 1 | . . . 1 Piercing Weapon . | . . . . Special Melee Weapon . | . . . . Unidentified Prototypes 1 | . . 1 . Corrupted Parts 5 | . . . 5 System Corruption 18 | . . . 18 Parts Lost 23 | . 1 4 18 Power 2 | . . . 2 Propulsion 9 | . . 2 7 Utility 3 | . 1 1 1 Weapon 9 | . . 1 8 Highest Loss Streak 5 | . 1 2 5 To Critical Strikes . | . . . . Average Backups 7 | . 7 7 7 Power . | . . . . Propulsion . | . 1 . . Utility 3 | . 1 5 4 Weapon 2 | . 3 2 2 Tool/Special . | . . . . Unused Backups 13 | . 1 6 6 Power . | . . . . Propulsion . | . . . . Utility 10 | . . 4 6 Weapon 3 | . 1 2 . Tool/Special . | . . . . Average Slot Usage (%) 90 | . 99 91 80 Engine 10 | . 14 11 6 Treads 1 | . . 2 . Leg 22 | . 28 20 17 Wheel 2 | . . 4 4 Device 5 | . 9 . 8 Storage 11 | . 14 11 9 Protection 7 | . 4 10 6 Energy Gun 16 | . 18 14 17 Ballistic Gun 9 | . 9 15 1 Launcher 1 | . . . 4 Peak Build Rating 22 | 7 7 21 22 Average Rating 12 | 5 6 13 17 On Entrance 8 | . 7 7 20 Avg Prop Armor Cover (%) 8 | . . 8 7 Naked Turns . | . . . . Heaviest Build 35 | 14 17 29 35 Greatest Support 40 | 20 20 30 40 Greatest Overweight (x) 11 | . . 2 11 Average Overweight (x) . | . . 1 1 Largest Inventory Capacity 15 | 8 8 8 15 Average Capacity 8 | 6 8 8 9 Most Carried 8 | 2 8 8 8 Average Carried 7 | . 7 7 7 Final Capacity 15 | 8 8 8 15 Final Carried 8 | 2 8 8 7 Class Distribution -------------------- 35% | Mutant 28% | Tank 18% | Scavenger-Tank 13% | Scavenger-Mutant Dominant Class ---------------- Mutant | -10/Materials Tank | -9/Materials Tank | -8/Materials Resources | -11 -10 -9 -8 ----------- Run | Yrd Mat Mat Mat Matter Collected 1409 | 252 424 473 260 Remotely . | . . . . Salvage Created 3139 | 13 775 868 1483 Parts 197 | 5 47 62 83 Haulers Intercepted 4 | . 1 2 1 Recyclers Shooed 3 | . 1 . 2 Parts Field Recycled . | . . . . Retrieved Matter . | . . . . Parts Self-Destructed . | . . . . Prevented . | . . . . Parts Restored . | . . . . Kills | -11 -10 -9 -8 ------- Run | Yrd Mat Mat Mat Combat Hostiles Destroyed 58 | . 17 19 22 Guns 45 | . 17 14 14 AOE 13 | . . 5 8 Classes Destroyed 13 | 1 6 3 3 Worker 3 | . . . 3 Builder 4 | . 1 . 3 Tunneler 1 | 1 . . . Hauler 4 | . 1 2 1 Recycler 4 | . 1 1 2 Mechanic 1 | . . . 1 Operator 3 | . . 2 1 Watcher 4 | . 2 1 1 Swarmer 15 | . 6 6 3 Grunt 30 | . 11 6 13 Brawler 1 | . . . 1 Duelist 1 | . . 1 . Sentry 11 | . . 6 5 Best Kill Streak 7 | 1 4 6 7 Combat Bots Only 7 | . 3 6 7 Max Kills in Single Turn 5 | 1 1 5 2 Gunslinging . | . . . . Exploded 5 | . . 5 2 Melee . | . . . . Uniques/NPCs Destroyed . | . . . . Combat | -11 -10 -9 -8 -------- Run | Yrd Mat Mat Mat Hostile Shots Fired 313 | . 84 77 152 Missed 90 | . 30 19 41 Hits 223 | . 54 58 111 Projectile 223 | . 54 58 111 Critical Strikes 11 | . . 1 10 Damage Taken 3111 | . 593 674 1844 Core 574 | . 86 26 462 Absorbed by Shields . | . . . . Core Remaining (%) 86 | 100 65 93 . Volleys Fired 205 | 2 66 60 77 Largest 3 | 2 2 3 3 Hottest 150 | 60 80 125 150 Shots Fired 450 | 4 132 155 159 Gun 436 | 4 132 154 146 Cannon . | . . . . Launcher 14 | . . 1 13 Special . | . . . . Kinetic 159 | 2 58 83 16 Thermal 195 | 2 58 52 83 Explosive 1 | . . 1 . Electromagnetic 95 | . 16 19 60 Robot Hit Streak 13 | 3 11 13 12 Robot Miss Streak 6 | 1 5 6 4 Penetration Max . | . . . . Secondary Targets 9 | . 2 2 5 Max Gunslinging Chain 1 | . 1 1 1 Shots Hit Robots 250 | 3 67 85 95 Core Hits 140 | 1 37 37 65 Critical Kills 1 | . . 1 . Critical Parts Destroyed 1 | . 1 . . Critical Strikes 9 | . 2 3 4 Burn 7 | . 1 2 4 Destroy 2 | . 1 1 . Melee Attacks 2 | . . . 2 Impact . | . . . . Slashing 2 | . . . 2 Piercing . | . . . . Sneak Attacks . | . . . . Combat Hostiles . | . . . . Follow-up Attacks . | . . . . Damage Inflicted 4844 | 39 863 1403 2539 Guns 3731 | 39 863 1178 1651 Cannons . | . . . . Explosions 1113 | . . 225 888 Melee . | . . . . Ramming . | . . . . Kinetic 1097 | 28 400 549 120 Thermal 2136 | 11 407 446 1272 Explosive 225 | . . 225 . Electromagnetic 1386 | . 56 183 1147 Impact . | . . . . Slashing . | . . . . Piercing . | . . . . Highest Corruption 19 | . . 7 19 Average Corruption 11 | . . 5 14 Corruption Purged . | . . . . Corruption Blocked . | . . . . Effects 29 | . . 5 24 Message Errors 5 | . . . 5 Matter Fused 5 | . . 1 4 Heat Flow Errors 5 | . . 1 4 Energy Discharges 3 | . . 1 2 Parts Rejected 1 | . . . 1 Parts Fused 2 | . . . 2 Data Loss (minor) 3 | . . . 3 Data Loss (major) 2 | . . 2 . Weapon Failures 3 | . . . 3 Overload Shots . | . . . . Overflow Damage 53 | . . 2 51 Projectiles . | . . . . Explosions 53 | . . 2 51 Melee . | . . . . Knockbacks . | . . . . Impact . | . . . . Kinetic . | . . . . Secondary . | . . . . Self-Inflicted Damage 210 | . . . 210 Shots 11 | . . . 11 Rammed . | . . . . Targets Rammed . | . . . . Kicked . | . . . . Crushed . | . . . . Highest Temperature 506 | . 184 463 506 Average Temperature 134 | . 49 137 170 Received Heat Transfer 1365 | . 234 240 891 Effects 11 | . . 5 6 Shutdowns 3 | . . 2 1 Energy Bleed 2 | . . 2 . Interference 2 | . . . 2 Matter Decay 1 | . . . 1 Short Circuit 1 | . . . 1 Damage (minor) 2 | . . 1 1 Siege Activations . | . . . . Martial Activations . | . . . . Shielding Activations . | . . . . Robots Disrupted . | . . . . Combat Hostiles . | . . . . Robots Corrupted . | . . . . Combat Hostiles . | . . . . Parts Fried 3 | . . . 3 Impact Corruptions . | . . . . Robots Melted . | . . . . Combat Hostiles . | . . . . Parts Melted 2 | . 1 . 1 Heat Transferred 5049 | 25 1070 1258 2696 Parts Sabotaged . | . . . . Parts Stolen . | . . . . Parts Stripped . | . . . . Power Chain Reactions 10 | . . . 10 Alert | -11 -10 -9 -8 ------- Run | Yrd Mat Mat Mat Maximum Alert Level 1 | . . 1 1 Low Security (%) 80 | 100 100 95 36 Level 1 19 | . . 4 63 Level 2 . | . . . . Level 3 . | . . . . Level 4 . | . . . . Level 5 . | . . . . High Security . | . . . . Max Security . | . . . . Peak Influence 331 | 5 147 210 331 Initial 70 | . . 51 70 Average 143 | . 70 157 224 Influence Increases 1793 | 5 474 561 753 Destroy 0b10 Robot/C 1160 | . 340 380 440 Destroy 0b10 Robot/NC 120 | 5 25 30 60 Destroy Leader 316 | . 66 126 124 Successful Hack 14 | . 12 2 . Disable Machine 90 | . . 15 75 Destroy Structure 48 | . 1 8 39 Lose Combat Pursuer 45 | . 30 . 15 Influence Decreases 1476 | 5 351 516 604 Entered New Map 170 | . . 72 98 Time Decay 1076 | 5 341 404 326 Lost Part 230 | . 10 40 180 Squads Dispatched 13 | . 2 4 7 Investigation 4 | . 2 1 1 Extermination . | . . . . Reinforcement 6 | . . 3 3 Assault . | . . . . Garrison 3 | . . . 3 Intercept . | . . . . Searches Triggered . | . . . . Construction Impeded 3 | . . . 3 Haulers Reinforced . | . . . . Active Scanning Responses . | . . . . Cargo Convoy Interrupts . | . . . . Stealth | -11 -10 -9 -8 --------- Run | Yrd Mat Mat Mat Distress Signals 6 | . 1 2 3 Communications Jammed . | . . . . Distress Signals . | . . . . Times Spotted 82 | . 25 26 31 Peak Tracking Total 8 | . 5 7 8 Tactical Retreats 4 | . 3 . 1 Traps | -11 -10 -9 -8 ------- Run | Yrd Mat Mat Mat Traps Triggered 8 | . 3 2 3 Indirectly . | . . . . Trap Hack Attempts . | . . . . Triggered . | . . . . Disarmed . | . . . . Reprogrammed . | . . . . Reused . | . . . . Traps Extracted . | . . . . Installed . | . . . . Triggered . | . . . . Machines | -11 -10 -9 -8 ---------- Run | Yrd Mat Mat Mat Machines Disabled 6 | . . 1 5 Max in Single Turn 1 | . . 1 1 Machines Repaired . | . . . . Machines Dismantled . | . . . . Machines Sabotaged . | . . . . Overloaded Fab Kills . | . . . . Hacking | -11 -10 -9 -8 --------- Run | Yrd Mat Mat Mat Machines Accessed 10 | . 4 4 2 Terminals 7 | . 4 2 1 Fabricators . | . . . . Repair Stations . | . . . . Recycling Units . | . . . . Scanalyzers 3 | . . 2 1 Garrison Access . | . . . . Total Hacks 25 | . 9 10 6 Successful 7 | . 2 2 3 Failed 16 | . 6 7 3 Catastrophic 2 | . 1 1 . Database Lockouts 2 | . 1 1 . Manual 15 | . 8 5 2 Terminals 16 | . 9 5 2 Fabricators . | . . . . Repair Stations . | . . . . Recycling Units . | . . . . Scanalyzers 9 | . . 5 4 Garrison Access . | . . . . Terminal Hacks 3 | . 2 . 1 Part Schematic 1 | . 1 . . Registered Components 1 | . . . 1 Zone Layout 1 | . 1 . . Fabricator Hacks . | . . . . Repair Station Hacks . | . . . . Recycling Unit Hacks . | . . . . Scanalyzer 4 | . . 2 2 Insert Component 1 | . . 1 . Retrieve Study 3 | . . 1 2 Garrison Access Hacks . | . . . . Unauthorized Hacks . | . . . . Terminals . | . . . . Fabricators . | . . . . Repair Stations . | . . . . Recycling Units . | . . . . Scanalyzers . | . . . . Garrison Access . | . . . . Data Cores Recovered . | . . . . Used . | . . . . Hacking Detections 6 | . 4 2 . Full Trace Events 2 | . 1 1 . Feedback Events . | . . . . Feedback Blocked . | . . . . Robot Schematics Acquired . | . . . . Robots Built . | . . . . Authchips . | . . . . Time . | . . . . Total Robot Build Rating . | . . . . Part Schematics Acquired 1 | . 1 . . Parts Built . | . . . . Authchips . | . . . . Time . | . . . . Total Part Build Rating . | . . . . Part Studies Acquired 3 | . . 1 2 Parts Repaired . | . . . . Time . | . . . . Parts Recycled . | . . . . Recycled Matter . | . . . . Retrieved Matter . | . . . . Retrieved Components . | . . . . Parts Scanalyzed 1 | . . 1 . Part Schematics Acquired . | . . . . Parts Damaged 1 | . . 1 . Bothacking | -11 -10 -9 -8 ------------ Run | Yrd Mat Mat Mat Used RIF Installer . | . . . . Robots Hacked . | . . . . Non-combat . | . . . . Combat . | . . . . Robot Hacks Applied . | . . . . Relay Couplers Released . | . . . . Fabnet Peak Effective % . | . . . . Robots Rewired . | . . . . Allies Hacked . | . . . . Hacks Repelled . | . . . . Allies | -11 -10 -9 -8 -------- Run | Yrd Mat Mat Mat Total Allies . | . . . . Largest Group . | . . . . Highest-Rated Group . | . . . . Highest-Rated Ally . | . . . . Total Orders . | . . . . Ally Attacks . | . . . . Total Damage . | . . . . Kills . | . . . . Allies Corrupted . | . . . . Allies Melted . | . . . . Intel | -11 -10 -9 -8 ------- Run | Yrd Mat Mat Mat Active Infowar (turns) 378 | 33 165 . 180 Optics 139 | . . . 139 Seismic 198 | 33 165 . . Machine Analysis 41 | . . . 41 Robot Analysis Total . | . . . . Derelict Logs Recovered . | . . . . Drone Launches . | . . . . Drone Recoveries . | . . . . Exploration | -11 -10 -9 -8 ------------- Run | Yrd Mat Mat Mat Turns Passed 2650 | 77 866 968 739 Spaces Moved 1409 | 59 514 526 310 Core 33 | 16 . . 17 Treads 78 | . . 78 . Legs 902 | 43 514 199 146 Wheels 396 | . . 249 147 Hover . | . . . . Flight . | . . . . Fastest Speed 50 | 50 120 105 105 Average Speed 130 | 101 120 139 139 Slowest Speed 600 | 120 120 240 600 Overloaded Moves . | . . . . Propulsion Burnouts . | . . . . Robots Hopped . | . . . . Potential Cave-ins . | . . . . Cave-ins Triggered . | . . . . Exploration Rate (%) 43 | 3 83 52 37 Regions Visited 3 Branch Regions . Pre-discovered Areas . | . . . . Known Exits Taken . | . . . . Unknown Exits Taken 3 | 1 1 1 . Scrap Searched . | . . . . Spaces Dug . | . . . . Terrain Destroyed 44 | . . 6 38 Melee . | . . . . Projectile . | . . . . AOE 44 | . . 6 38 Terrain Rammed . | . . . . Walls Destroyed . | . . . . Machines Disabled . | . . . . Actions | -11 -10 -9 -8 --------- Run | Yrd Mat Mat Mat Total 1805 | 69 635 635 466 Wait 64 | . 17 1 46 Move 1406 | 58 513 525 310 Hop . | . . . . Pick Up 23 | 2 8 10 3 Fast Attach 33 | 7 5 10 11 Attach 8 | . . 3 5 Detach . | . . . . Swap 23 | . 11 7 5 Drop 41 | . 15 19 7 Fire 205 | 2 66 60 77 Melee 2 | . . . 2 Ram . | . . . . Kick . | . . . . Crush . | . . . . Escape Stasis . | . . . . Rewire . | . . . . Trap . | . . . . Miscellaneous . | . . . . Route ------- -11/Scrapyard -10/Materials (discovered 6 exits: *Mat x3 / [*Min x2] / [*Sub]) -9/Materials (discovered 3 exits: *Mat x2 / [*Min]) -8/Materials (discovered 1 exit: [*Fac]) History --------- Turn | Location | Event 5 | -11/Scrapyard | Discovered new exit (range 16) 78 | -11/Scrapyard | Entered Materials 310 | -10/Materials | Build established: Mutant 380 | -10/Materials | Discovered new exit (range 6) 437 | -10/Materials | Discovered new exit (range 6) 487 | -10/Materials | Discovered new exit (range 16) 500 | -10/Materials | Discovered new exit (range 16) 578 | -10/Materials | Derelicts attacked the area 618 | -10/Materials | Build established: Scavenger-Mutant 621 | -10/Materials | Discovered new exit (range 16) 743 | -10/Materials | Central database locked down 812 | -10/Materials | Discovered new exit (range 8) 944 | -10/Materials | Entered another Materials area 944 | -9/Materials | Evolved 2 slots: Propulsion x1, Weapon x1 999 | -9/Materials | Discovered new exit (range 10) 1464 | -9/Materials | Discovered new exit (range 16) 1841 | -9/Materials | Discovered new exit (range 16) 1897 | -9/Materials | Central database locked down 1912 | -9/Materials | Entered another Materials area 1912 | -8/Materials | Evolved 2 slots: Propulsion x1, Utility x1 1993 | -8/Materials | Build established: Tank 2258 | -8/Materials | Destroyed 7 combat bots 2266 | -8/Materials | System corruption reached 10% 2366 | -8/Materials | Garrison activated, responded to threat 2370 | -8/Materials | Discovered new exit (range 15) 2450 | -8/Materials | Lost 4 parts (1p2n1w) 2471 | -8/Materials | Garrison activated, responded to threat 2516 | -8/Materials | Core integrity fell below 50% 2552 | -8/Materials | Lost 5 parts (3n2w) 2649 | -8/Materials | Core integrity fell below 20% 2651 | -8/Materials | Self-destructed Last Messages --------------- 02630_ Imp. Heat Sink destroyed. 02631_ U-05 Engineer lays Concrete. 02631_ Terminal disabled. 02633_ S-10 Pest destroyed. 02634_ U-05 Engineer lays Concrete. 02636_ System corrupted: Heat flow error (+197). 02636_ U-05 Engineer lays Concrete. 02637_ System corrupted: EMP Blaster+ failed to launch. 02638_ U-05 Engineer lays Concrete. 02639_ S-10 Pest destroyed. 02639_ Chain reaction triggered in Corrupted Lgt. Ion Engine. 02639_ Lgt. Nuclear Core destroyed. 02639_ Destroyed Lgt. Nuclear Core. 02639_ Destroyed Com. Wheel. 02641_ EMP Blaster+ destroyed. 02641_ Destroyed EMP Blaster+. 02642_ ALERT: Construction progress impeded, dispatching reinforcements to local area. Map ----- +----------------------------------------------------+ | ???# ## #???????????????????????????? | | ???# ## #???????????????????????????? | | ???# T #???????????????????????????? | | ???#### #?????##????????????????????? | | ??????# #????? #????????????????????? | | ??????###%###???? #????????????????????? | | ######### #?????? #????????????????????? | | # # #?????? #????????????????????? | | # "" # #?????" ?????????????????????? | | # "G # #????? ??????????????????????? | | # "" #%######+######?????????????????? | | # # #?????????????????? | | # + #?????????????????? | | # # #?????????????????? | | # """ ###% #?????????????????? | | # """ ### % #?????????????????? | | # """ # % #?????????????????? | | # #" / #?????????????????? | | ######### " ! g #?????????????????? | | ????????### !/ < #?????????????????? | | ?????????## g #?????????????????? | | ?????????# ]g#####?????????????????? | | ?????????# r ##????????????????????? | | ?????????# ! #????????????????????? | | ?????????## [%= ## #???????????????? | | ??????????# [ [@ " +???????????????? | | ??????????##### # # #???????????????? | | ??????????????#######???????????????????? | | ????????????????????????????????????????? | | ????????????????????????????????????????? | | ????????????????????????????????????????? | | | | | | | | | | | | | | | | | | | | | | | | | | | | | | | | | | | | | | | +----------------------------------------------------+ Best States ------------- Heat Dissipation 45 Energy Generation 14 Energy Capacity 275 Matter Stores 300 Matter Capacity 300 Sight Range 20 Terrain Scan Density 10 Armor Coverage 150 Evasion (%) 55 Recoil Reduction 1 Item Schematics ----------------- Hcp. Storage Unit | -10/Materials | Hacked Robot Schematics ------------------ None Fabricated ------------ Nothing Repaired ---------- Nothing Studied --------- Aluminum Leg | -9/Materials | Hacked EMP Blaster | -8/Materials | Hacked Arm. Wheel | -8/Materials | Hacked Alien Tech Used ----------------- None Achievements -------------- None Challenges ------------ None Game ------ Seed MultireflexBladeObliterator Manual? 0 Play Time 00:18:32 Cumulative 84.5 hours Start 2026.02.14 @ 03:58:38 End 2026.02.14 @ 04:19:18 Sessions 3 Manual Loads 0 Difficulty Rogue Special Mode None Game No. 131 Rogue 131 Adventurer 0 Explorer 0 Win Type - Total 0 Types 0/0/0/0/0/0/0/0/0/0 Lore% 17 Gallery% 36 Achievement% 27 Wizard Run 0 Options --------- Layout 1 ASCII 0 Keyboard 0 Movement Mouse Keybinds 0 Fullscreen 2 Font 24/Smallcaps Map View 25x17 Zoom Use 56% Tactical HUD 1 Map Filters NONE Filters NONE Steam 1 RUN: 9a852151-c829-45c1-bb09-990d898374fa